bitfinex-derivatives/quotes_BTCF0:USTF0_20241022
["timestamp","ask_amount","ask_price","bid_price","bid_amount"]
[1729575558386,0.3608,67694.0,67693.0,0.001]
[1729575558387,0.3748,67694.0,67693.0,0.001]
[1729575558592,0.3888,67694.0,67693.0,0.001]
[1729575559094,0.3888,67694.0,67693.0,0.111]
[1729575559691,0.4988,67694.0,67693.0,0.001]
[1729575559902,0.4988,67694.0,67693.0,0.11]
[1729575560492,0.073896,67693.0,67692.0,0.001]
[1729575560701,0.073896,67693.0,67691.0,0.11]
[1729575561695,0.091896,67693.0,67692.0,0.002]
[1729575562699,0.091896,67693.0,67692.0,0.001]
[1729575563405,0.098896,67693.0,67691.0,0.002]
[1729575563595,0.025,67693.0,67691.0,0.002]
[1729575563906,0.073897,67692.0,67691.0,0.002]
[1729575564089,0.073897,67692.0,67691.0,0.001]
[1729575565098,0.087897,67692.0,67691.0,0.001]
[1729575566611,0.101897,67692.0,67691.0,0.002]
[1729575568602,0.655097,67692.0,67691.0,0.002]
[1729575568804,0.073912,67679.0,67675.0,0.544715]
[1729575568997,0.11,67676.0,67675.0,0.544715]
[1729575569199,0.11,67677.0,67675.0,0.544715]
[1729575569402,0.073918,67673.0,67670.0,0.073921]
[1729575569707,0.18392,67671.0,67670.0,0.183921]
[1729575570009,0.07392,67671.0,67670.0,0.183921]
[1729575570501,0.073921,67670.0,67668.0,0.11]
[1729575572009,0.074921,67670.0,67668.0,0.115]
[1729575573205,0.074921,67670.0,67668.0,0.12]
[1729575573808,0.074921,67670.0,67668.0,0.193923]
[1729575574010,0.001,67670.0,67669.0,0.073922]
[1729575575310,0.544714,67677.0,67671.0,0.07392]
[1729575575615,0.544714,67677.0,67675.0,0.11]
[1729575575805,0.544714,67677.0,67675.0,0.05635018]
[1729575576411,0.0426809,67676.0,67675.0,0.05635018]
[1729575577718,0.0436809,67676.0,67675.0,0.05635018]
[1729575577920,0.0456809,67676.0,67675.0,0.05635018]
[1729575578917,0.003,67676.0,67675.0,0.05635018]
[1729575579616,0.003,67676.0,67674.0,0.073916]
[1729575582414,0.003,67676.0,67674.0,0.026036]
[1729575582619,0.003,67676.0,67675.0,0.073915]
[1729575582818,0.003,67676.0,67675.0,0.183915]
[1729575584021,0.001,67676.0,67675.0,0.183915]
[1729575584322,0.003,67676.0,67675.0,0.183915]
[1729575586218,0.076914,67676.0,67675.0,0.183915]
[1729575586914,0.11912752,67676.0,67675.0,0.065915]
[1729575587822,0.11912752,67676.0,67673.0,0.02646474]
[1729575587823,0.073916,67674.0,67673.0,0.02646474]
[1729575588127,0.073916,67674.0,67673.0,0.183918]
[1729575589023,0.073916,67674.0,67673.0,0.184918]
[1729575589223,0.073916,67674.0,67673.0,0.185918]
[1729575589816,0.073916,67674.0,67673.0,0.21249991]
[1729575590024,0.073916,67674.0,67673.0,0.10249991]
[1729575592126,0.073916,67674.0,67673.0,0.21249991]
[1729575597024,0.073916,67674.0,67673.0,0.10249991]
[1729575598131,0.183916,67674.0,67673.0,0.10249991]
[1729575599328,0.073916,67674.0,67673.0,0.10249991]
[1729575603324,0.073916,67674.0,67673.0,0.21249991]
[1729575604526,0.3608,67677.0,67673.0,0.13858191]
[1729575604844,0.434713,67677.0,67676.0,0.183914]
[1729575605932,0.437713,67677.0,67676.0,0.183914]
[1729575606131,0.4817537,67677.0,67676.0,0.183914]
[1729575606727,0.437713,67677.0,67676.0,0.183914]
[1729575606933,0.439713,67677.0,67676.0,0.073914]
[1729575607630,0.439713,67677.0,67676.0,0.183914]
[1729575607631,0.3658,67677.0,67676.0,0.183914]
[1729575608831,0.3658,67677.0,67676.0,0.22770954]
[1729575609226,0.3658,67677.0,67676.0,0.183914]
[1729575609626,0.3658,67677.0,67676.0,0.22802703]
[1729575610039,0.3658,67677.0,67676.0,0.183914]
[1729575610530,0.3658,67677.0,67676.0,0.22802965]
[1729575612438,0.3658,67677.0,67676.0,0.11802965]
[1729575612627,0.3658,67677.0,67676.0,0.22802965]
[1729575615036,0.549713,67677.0,67676.0,0.04411565]
[1729575615233,0.549713,67677.0,67673.0,0.07069756]
[1729575615234,0.073916,67674.0,67673.0,0.07069756]
[1729575615440,0.073918,67673.0,67672.0,0.11803365]
[1729575616143,0.073918,67673.0,67672.0,0.07068875]
[1729575616732,0.073918,67673.0,67672.0,0.0285731]
[1729575617033,0.073918,67673.0,67672.0,0.12512834]
[1729575618344,0.073918,67673.0,67672.0,0.12712698]
[1729575623149,0.183918,67673.0,67672.0,0.10411208]
[1729575623940,0.183918,67673.0,67672.0,0.0305731]
[1729575631646,0.073925,67666.0,67665.0,0.00116]
[1729575631838,0.654725,67666.0,67661.0,0.02627893]
[1729575632140,0.073928,67663.0,67662.0,0.0964044]
[1729575632537,0.07393,67662.0,67658.0,0.07575118]
[1729575632738,0.073933,67659.0,67658.0,0.07575118]
[1729575632947,0.073933,67659.0,67658.0,0.00221695]
[1729575634446,0.3608,67660.0,67655.0,0.02673698]
[1729575634647,0.11,67656.0,67653.0,0.11]
[1729575634849,0.073938,67654.0,67653.0,0.11]
[1729575635935,0.073938,67654.0,67652.0,0.07394]
[1729575636140,0.183939,67653.0,67652.0,0.07394]
[1729575636441,0.183939,67653.0,67651.0,0.18353423]
[1729575636442,0.073941,67652.0,67651.0,0.20983907]
[1729575636751,0.073941,67652.0,67651.0,0.3065559]
[1729575636947,0.183941,67652.0,67651.0,0.02630484]
[1729575637243,0.11,67653.0,67646.0,0.07408789]
[1729575637244,0.073944,67649.0,67646.0,0.07408789]
[1729575637439,0.11,67647.0,67646.0,0.07408789]
[1729575637844,0.073945,67648.0,67646.0,0.10065642]
[1729575638050,0.073945,67648.0,67647.0,0.073946]
[1729575638542,0.073945,67648.0,67647.0,0.183946]
[1729575639046,0.073945,67648.0,67647.0,0.25748023]
[1729575639346,0.3608,67649.0,67648.0,0.073945]
[1729575639644,0.3608,67657.0,67648.0,0.073945]
[1729575639645,0.11,67656.0,67648.0,0.073945]
[1729575639851,0.434736,67657.0,67655.0,0.11]
[1729575640152,0.434736,67657.0,67656.0,0.073936]
[1729575640948,0.434736,67657.0,67656.0,0.13262498]
[1729575641856,0.434736,67657.0,67656.0,0.073936]
[1729575642051,0.434736,67657.0,67656.0,0.13262498]
[1729575642754,0.434736,67657.0,67656.0,0.073936]
[1729575643653,0.434736,67657.0,67656.0,0.10072885]
[1729575645250,0.073936,67656.0,67655.0,0.05868898]
[1729575645448,0.073936,67656.0,67653.0,0.11]
[1729575645449,0.073937,67655.0,67654.0,0.05868898]
[1729575645944,0.073937,67655.0,67652.0,0.07394]
[1729575645945,0.073939,67653.0,67652.0,0.07394]
[1729575646143,0.183939,67653.0,67652.0,0.07394]
[1729575646547,0.183939,67653.0,67652.0,0.10117509]
[1729575648553,0.073939,67653.0,67652.0,0.10117509]
[1729575648753,0.3608,67657.0,67656.0,0.073936]
[1729575648754,0.434735,67657.0,67656.0,0.073936]
[1729575649050,0.434735,67657.0,67656.0,0.183936]
[1729575652253,0.3608,67657.0,67656.0,0.183936]
[1729575653450,0.434735,67657.0,67656.0,0.183936]
[1729575653764,0.434735,67657.0,67656.0,0.073936]
[1729575653765,0.544735,67657.0,67656.0,0.073936]
[1729575653958,0.544735,67657.0,67656.0,0.24398609]
[1729575654759,0.544735,67657.0,67656.0,0.17062907]
[1729575656151,0.544735,67657.0,67656.0,0.09669307]
[1729575657660,0.544735,67657.0,67656.0,0.20669307]
[1729575657661,0.434735,67657.0,67656.0,0.20669307]
[1729575657865,0.434735,67657.0,67656.0,0.09669307]
[1729575658066,0.434735,67657.0,67656.0,0.20669307]
[1729575658773,0.073935,67657.0,67656.0,0.20669307]
[1729575658967,0.073935,67657.0,67656.0,0.09669307]
[1729575660462,0.073935,67657.0,67656.0,0.18495576]
[1729575660665,0.183935,67657.0,67656.0,0.18495576]
[1729575660970,0.183935,67657.0,67656.0,0.09669307]
[1729575661867,0.183935,67657.0,67655.0,0.13275973]
[1729575662467,0.073936,67656.0,67655.0,0.13275973]
[1729575665965,0.073936,67656.0,67655.0,0.13375973]
[1729575667567,0.073936,67656.0,67655.0,0.13275973]
[1729575668666,0.073936,67656.0,67655.0,0.073936]
[1729575668866,0.073936,67656.0,67655.0,0.18950631]
[1729575669072,0.073936,67656.0,67655.0,0.28646438]
[1729575674367,0.073932,67660.0,67659.0,0.073933]
[1729575674572,0.183932,67660.0,67659.0,0.17089107]
[1729575675376,0.183932,67660.0,67659.0,0.28644465]
[1729575675575,0.183932,67660.0,67659.0,0.17089107]
[1729575675775,0.183932,67660.0,67659.0,0.17095087]
[1729575675973,0.073932,67660.0,67659.0,0.17095087]
[1729575676574,0.073932,67660.0,67659.0,0.28662251]
[1729575676976,0.073932,67660.0,67659.0,0.073933]
[1729575679370,0.073932,67660.0,67659.0,0.065933]
[1729575681876,0.073932,67660.0,67659.0,0.0931563]
[1729575683985,0.073932,67660.0,67659.0,0.27840409]
[1729575685386,0.0022175,67668.0,67667.0,0.073924]
[1729575685583,0.13657075,67687.0,67677.0,0.073913]
[1729575685887,0.11,67681.0,67680.0,0.07356531]
[1729575686082,0.183909,67681.0,67680.0,0.16982492]
[1729575686283,0.183909,67681.0,67677.0,0.07356531]
[1729575686478,0.11,67678.0,67677.0,0.07356531]
[1729575687082,0.11,67678.0,67677.0,0.14747831]
[1729575688194,0.11,67678.0,67677.0,0.17421686]
[1729575689089,0.119,67678.0,67677.0,0.17521686]
[1729575689987,0.127,67678.0,67677.0,0.28621686]
[1729575694593,0.127,67678.0,67677.0,0.27821686]
[1729575694794,0.127,67678.0,67677.0,0.21265155]
[1729575695594,0.017,67678.0,67677.0,0.21265155]
[1729575703825,0.017,67678.0,67677.0,0.10265155]
[1729575703826,0.090912,67678.0,67677.0,0.10265155]
[1729575704112,0.090912,67678.0,67668.0,0.073923]
[1729575704113,0.073923,67669.0,67668.0,0.073923]
[1729575704319,0.183923,67669.0,67668.0,0.073923]
[1729575704513,0.073927,67665.0,67664.0,0.22190134]
[1729575704715,0.073927,67665.0,67663.0,0.02918546]
[1729575704716,0.11,67665.0,67663.0,0.02918546]
[1729575704911,0.434727,67664.0,67663.0,0.02918546]
[1729575706121,0.434727,67664.0,67663.0,0.00221646]
[1729575706304,0.435727,67664.0,67663.0,0.00721646]
[1729575707614,0.436727,67664.0,67663.0,0.01221646]
[1729575708320,0.436727,67664.0,67663.0,0.01]
[1729575709029,0.546727,67664.0,67663.0,0.01]
[1729575709531,0.436727,67664.0,67663.0,0.01]
[1729575710022,0.436727,67664.0,67663.0,0.008]
[1729575711219,0.073938,67654.0,67653.0,0.073939]
[1729575711422,0.183938,67654.0,67653.0,0.10052043]
[1729575712525,0.184938,67654.0,67653.0,0.10752043]
[1729575713320,0.185938,67654.0,67653.0,0.10852043]
[1729575721629,0.075938,67654.0,67653.0,0.10852043]
[1729575722730,0.075938,67654.0,67653.0,0.21852043]
[1729575725626,0.185938,67654.0,67653.0,0.21852043]
[1729575727138,0.185938,67654.0,67653.0,0.03458143]
[1729575727436,0.185938,67654.0,67653.0,0.09330313]
[1729575728829,0.075938,67654.0,67653.0,0.16724213]
[1729575729033,0.075938,67654.0,67653.0,0.10852043]
[1729575730034,0.185938,67654.0,67653.0,0.10852043]
[1729575730438,0.185938,67654.0,67653.0,0.16726285]
[1729575730638,0.185938,67654.0,67653.0,0.10852043]
[1729575731039,0.075938,67654.0,67653.0,0.10852043]
[1729575731641,0.075938,67654.0,67653.0,0.16730785]
[1729575732341,0.075938,67654.0,67653.0,0.10852043]
[1729575733340,0.075938,67654.0,67653.0,0.18188454]
[1729575733542,0.075938,67654.0,67653.0,0.10852043]
[1729575734241,0.075938,67654.0,67653.0,0.20586431]
[1729575736533,0.075938,67654.0,67653.0,0.10852043]
[1729575744544,0.075938,67654.0,67653.0,0.20584981]
[1729575750060,0.075938,67654.0,67653.0,0.10852043]
[1729575751257,0.075938,67654.0,67653.0,0.20571718]
[1729575752053,0.075938,67654.0,67653.0,0.10852043]
[1729575756556,0.185938,67654.0,67653.0,0.10852043]
[1729575756855,0.185938,67654.0,67653.0,0.15274834]
[1729575757456,0.102738,67654.0,67653.0,0.15274834]
[1729575758463,0.176676,67654.0,67653.0,0.15274834]
[1729575758649,0.176676,67654.0,67653.0,0.07880934]
[1729575759562,0.176676,67654.0,67653.0,0.03458143]
[1729575762057,0.176676,67654.0,67653.0,0.13167703]
[1729575764154,0.073938,67654.0,67653.0,0.13167703]
[1729575764355,0.073938,67654.0,67653.0,0.32131394]
[1729575764567,0.183938,67654.0,67653.0,0.32131394]
[1729575764768,0.183938,67654.0,67653.0,0.32144433]
[1729575764966,0.183938,67654.0,67653.0,0.2056895]
[1729575765266,0.183938,67654.0,67653.0,0.32151131]
[1729575767574,0.183938,67654.0,67653.0,0.10852043]
[1729575770473,0.183938,67654.0,67653.0,0.15275674]
[1729575774563,0.183938,67654.0,67653.0,0.20571811]
[1729575774963,0.183938,67654.0,67653.0,0.13178575]
[1729575775362,0.293938,67654.0,67653.0,0.17894916]
[1729575775568,0.293938,67654.0,67646.0,0.00014089]
[1729575775569,0.073939,67653.0,67652.0,0.07374771]
[1729575775777,0.073942,67651.0,67650.0,0.07374771]
[1729575775978,0.434742,67651.0,67650.0,0.17128275]
[1729575776167,0.434742,67651.0,67650.0,0.07374771]
[1729575776469,0.434742,67651.0,67650.0,0.05897087]
[1729575776675,0.073944,67649.0,67648.0,0.05897087]
[1729575776980,0.073944,67649.0,67647.0,0.05897087]
[1729575776981,0.11,67649.0,67647.0,0.05897087]
[1729575777166,0.073945,67648.0,67647.0,0.05897087]
[1729575777469,0.073945,67648.0,67646.0,0.00014089]
[1729575777470,0.073946,67647.0,67646.0,0.05911176]
[1729575778174,0.183946,67647.0,67646.0,0.05911176]
[1729575778377,0.183946,67647.0,67646.0,0.00014089]
[1729575778760,0.183946,67647.0,67646.0,0.05911176]
[1729575779376,0.183946,67647.0,67646.0,0.00014089]
[1729575780376,0.185946,67647.0,67646.0,0.00114089]
[1729575789576,0.185946,67647.0,67646.0,0.06011176]
[1729575792371,0.629426,67647.0,67646.0,0.06011176]
[1729575792576,0.629426,67647.0,67624.0,0.3616]
[1729575792577,0.073959,67635.0,67633.0,0.08847263]
[1729575792779,0.073962,67632.0,67631.0,0.08847263]
[1729575793076,0.183962,67632.0,67631.0,0.09730887]
[1729575793277,0.183962,67632.0,67625.0,0.08847263]
[1729575793481,0.073972,67623.0,67622.0,0.00221825]
[1729575793682,0.183972,67623.0,67622.0,0.1870418]
[1729575793978,0.183972,67623.0,67622.0,0.09856917]
[1729575794185,0.183972,67623.0,67622.0,0.19938892]
[1729575794683,0.183972,67623.0,67622.0,0.20038892]
[1729575794684,0.185972,67623.0,67622.0,0.20038892]
[1729575797372,0.185972,67623.0,67622.0,0.104038]
[1729575800481,0.075972,67623.0,67622.0,0.104038]
[1729575801283,0.002,67623.0,67622.0,0.104038]
[1729575801480,0.073966,67629.0,67628.0,0.073965]
[1729575801678,0.073966,67629.0,67628.0,0.183965]
[1729575803186,0.074966,67629.0,67628.0,0.184965]
[1729575803584,0.075966,67629.0,67628.0,0.184965]
[1729575804581,0.002,67629.0,67628.0,0.36972896]
[1729575805188,0.075966,67629.0,67628.0,0.36972896]
[1729575805383,0.075966,67629.0,67628.0,0.28125633]
[1729575805789,0.075966,67629.0,67628.0,0.50321723]
[1729575812602,0.075966,67629.0,67628.0,0.59153288]
[1729575813606,0.073956,67638.0,67629.0,0.073965]
[1729575813805,0.073959,67636.0,67635.0,0.073959]
[1729575814008,0.073959,67636.0,67635.0,0.17025033]
[1729575814510,0.073959,67636.0,67635.0,0.50240547]
[1729575815314,0.073959,67636.0,67635.0,0.50165643]
[1729575816220,0.073959,67636.0,67635.0,0.50265643]
[1729575816906,0.073959,67636.0,67635.0,0.50465643]
[1729575817215,0.074959,67636.0,67635.0,0.50565643]
[1729575817810,0.075959,67636.0,67635.0,0.49765643]
[1729575818005,0.075959,67636.0,67635.0,0.58596126]
[1729575818604,0.075959,67636.0,67635.0,0.61238058]
[1729575819710,0.075959,67636.0,67635.0,0.42853346]
[1729575825418,0.075959,67636.0,67635.0,0.31853346]
[1729575825617,0.075959,67636.0,67635.0,0.42853346]
[1729575827818,0.075959,67636.0,67635.0,0.52425858]
[1729575829329,0.075959,67636.0,67635.0,0.41425858]
[1729575829621,0.075959,67636.0,67635.0,0.52425858]
[1729575829813,0.185959,67636.0,67635.0,0.41425858]
[1729575830424,0.185959,67636.0,67635.0,0.52836947]
[1729575832117,0.185959,67636.0,67635.0,0.31853346]
[1729575832325,0.185959,67636.0,67635.0,0.41428569]
[1729575832824,0.075959,67636.0,67635.0,0.52428569]
[1729575833027,0.075959,67636.0,67635.0,0.51628569]
[1729575833223,0.073955,67640.0,67635.0,0.68246731]
[1729575833417,0.073955,67640.0,67639.0,0.27232339]
[1729575833612,0.073955,67640.0,67639.0,0.27970723]
[1729575833827,0.073955,67640.0,67639.0,0.50152337]
[1729575834222,0.073955,67640.0,67639.0,0.61541121]
[1729575834521,0.073955,67640.0,67639.0,0.50152337]
[1729575834721,0.073955,67640.0,67639.0,0.40577114]
[1729575835613,0.073955,67640.0,67639.0,0.40677114]
[1729575836224,0.073955,67640.0,67639.0,0.40977114]
[1729575837927,0.074955,67640.0,67639.0,0.40677114]
[1729575838224,0.075955,67640.0,67639.0,0.40977114]
[1729575842625,0.075955,67640.0,67639.0,0.50543473]
[1729575843423,0.075955,67640.0,67639.0,0.59379692]
[1729575845432,0.075955,67640.0,67639.0,0.40977114]
[1729575845637,0.075955,67640.0,67639.0,0.59391121]
[1729575846135,0.075955,67640.0,67639.0,0.50545422]
[1729575846331,0.075955,67640.0,67639.0,0.59390941]
[1729575848534,0.075955,67640.0,67639.0,0.58590941]
[1729575849029,0.075955,67640.0,67639.0,0.49745422]
[1729575850430,0.075955,67640.0,67639.0,0.49745434]
[1729575853844,0.002,67640.0,67639.0,0.38745434]
[1729575856540,0.002,67640.0,67639.0,0.47590953]
[1729575857647,0.002,67640.0,67639.0,0.29177114]
[1729575863751,0.002,67640.0,67639.0,0.28377114]
[1729575864644,0.002,67640.0,67639.0,0.49368675]
[1729575865551,0.002,67640.0,67639.0,0.37953723]
[1729575870557,0.002,67640.0,67639.0,0.37952953]
[1729575872753,0.002,67640.0,67639.0,0.34278921]
[1729575873257,0.075954,67640.0,67639.0,0.34278921]
[1729575874749,0.075954,67640.0,67639.0,0.45278921]
[1729575875557,0.075954,67640.0,67639.0,0.39377114]
[1729575876157,0.002,67640.0,67639.0,0.39377114]
[1729575879152,0.002,67640.0,67639.0,0.38577114]
[1729575883568,0.002,67640.0,67639.0,0.27577114]
[1729575884168,0.002,67640.0,67639.0,0.48560421]
[1729575886862,0.002,67640.0,67639.0,0.48561224]
[1729575887063,0.07395,67644.0,67639.0,0.43565724]
[1729575887362,0.07395,67644.0,67643.0,0.18395]
[1729575887565,0.07395,67644.0,67643.0,0.2796821]
[1729575888365,0.07395,67644.0,67643.0,0.18395]
[1729575888879,0.073943,67651.0,67644.0,0.073949]
[1729575889067,0.073943,67651.0,67643.0,0.69142963]
[1729575889068,0.073941,67652.0,67651.0,0.07394]
[1729575894378,0.073941,67652.0,67651.0,0.06594]
[1729575895177,0.073941,67652.0,67651.0,0.09229812]
[1729575897967,0.073941,67652.0,67651.0,0.31466217]
[1729575898475,0.434737,67656.0,67655.0,0.073937]
[1729575898672,0.434737,67656.0,67655.0,0.183937]
[1729575900062,0.438737,67656.0,67655.0,0.183937]
[1729575901072,0.442737,67656.0,67655.0,0.183937]
[1729575903474,0.442737,67656.0,67655.0,0.24278792]
[1729575903780,0.442737,67656.0,67655.0,0.183937]
[1729575903781,0.008,67656.0,67655.0,0.183937]
[1729575904081,0.008,67656.0,67655.0,0.76503041]
[1729575904972,0.008,67656.0,67655.0,0.85979061]
[1729575905581,0.081936,67656.0,67655.0,0.49899061]
[1729575905880,0.081936,67656.0,67655.0,0.40423041]
[1729575906783,0.008,67656.0,67655.0,0.40423041]
[1729575909774,0.081936,67656.0,67655.0,0.40423041]
[1729575909977,0.081936,67656.0,67655.0,0.39623041]
[1729575911981,0.191936,67656.0,67651.0,0.02635812]
[1729575912285,0.073943,67650.0,67649.0,0.3608]
[1729575912987,0.11,67652.0,67648.0,0.073944]
[1729575912988,0.073944,67649.0,67648.0,0.073944]
[1729575913383,0.073944,67649.0,67648.0,0.29579848]
[1729575914386,0.3608,67651.0,67650.0,0.073943]
[1729575914584,0.073941,67652.0,67651.0,0.073942]
[1729575915283,0.004,67656.0,67655.0,0.073937]
[1729575915584,0.073934,67658.0,67657.0,0.073935]
[1729575917080,0.079934,67658.0,67657.0,0.073935]
[1729575917990,0.085934,67658.0,67657.0,0.073935]
[1729575918689,0.446734,67658.0,67657.0,0.16875091]
[1729575919195,0.446734,67658.0,67657.0,0.19509851]
[1729575919893,0.446734,67658.0,67657.0,0.19524409]
[1729575921982,0.085934,67658.0,67657.0,0.19524409]
[1729575923598,0.012,67658.0,67657.0,0.19524409]
[1729575924897,0.012,67658.0,67657.0,0.28377133]
[1729575925192,0.012,67658.0,67657.0,0.27577133]
[1729575925589,0.012,67658.0,67657.0,0.0922826]
[1729575930797,0.085934,67658.0,67657.0,0.0922826]
[1729575933699,0.085934,67658.0,67657.0,0.18719945]
[1729575934699,0.085934,67658.0,67657.0,0.18711948]
[1729575939697,0.085934,67658.0,67657.0,0.18713376]
[1729575940405,0.085934,67658.0,67657.0,0.17913376]
[1729575940602,0.085934,67658.0,67657.0,0.0842826]
[1729575943608,0.085934,67658.0,67657.0,0.0263476]
[1729575943803,0.073936,67656.0,67655.0,0.073937]
[1729575944001,0.073937,67655.0,67654.0,0.04418766]
[1729575944206,0.073938,67654.0,67653.0,0.11]
[1729575946595,0.073938,67654.0,67653.0,0.183939]
[1729575946814,0.077938,67654.0,67653.0,0.183939]
[1729575947112,0.077938,67654.0,67653.0,0.21047169]
[1729575948101,0.077938,67654.0,67653.0,0.39385516]
[1729575949201,0.004,67654.0,67653.0,0.39385516]
[1729575949406,0.004,67654.0,67653.0,0.64087241]
[1729575950310,0.073931,67661.0,67660.0,0.073932]
[1729575950610,0.3608,67666.0,67665.0,0.073926]
[1729575950809,0.073921,67670.0,67665.0,0.09451699]
[1729575951011,0.073921,67670.0,67669.0,0.11]
[1729575952206,0.073924,67667.0,67666.0,0.07362024]
[1729575952410,0.073924,67667.0,67658.0,0.07362024]
[1729575952411,0.293924,67667.0,67658.0,0.07362024]
[1729575952613,0.3608,67659.0,67657.0,0.18362024]
[1729575952800,0.11,67658.0,67657.0,0.07362024]
[1729575953007,0.073934,67658.0,67657.0,0.20465405]
[1729575953205,0.073934,67658.0,67657.0,0.11]
[1729575954118,0.079934,67658.0,67657.0,0.111]
[1729575954812,0.084934,67658.0,67657.0,0.112]
[1729575955916,0.084934,67658.0,67657.0,0.104]
[1729575957714,0.194934,67658.0,67657.0,0.002]
[1729575961810,0.194934,67658.0,67657.0,0.04617768]
[1729575962412,0.194934,67658.0,67657.0,0.002]
[1729575962813,0.084934,67658.0,67657.0,0.002]
[1729575963009,0.194934,67658.0,67657.0,0.002]
[1729575965717,0.555734,67658.0,67657.0,0.002]
[1729575971216,0.073937,67655.0,67654.0,0.17763153]
[1729575971422,0.183937,67655.0,67654.0,0.27200931]
[1729575972428,0.186937,67655.0,67654.0,0.27200931]
[1729575973021,0.186937,67655.0,67654.0,0.27201205]
[1729575973419,0.186937,67655.0,67654.0,0.19838052]
[1729575973627,0.186937,67655.0,67654.0,0.27200408]
[1729575974031,0.189937,67655.0,67654.0,0.27200408]
[1729575974531,0.189937,67655.0,67654.0,0.16800408]
[1729575974829,0.073938,67654.0,67653.0,0.02679506]
[1729575975036,0.073938,67654.0,67650.0,0.07362356]
[1729575975330,0.073942,67651.0,67650.0,0.07362356]
[1729575975530,0.073942,67651.0,67646.0,0.11]
[1729575975531,0.073943,67650.0,67649.0,0.07362356]
[1729575975729,0.544743,67650.0,67649.0,0.16822375]
[1729575976736,0.544743,67650.0,67649.0,0.17022375]
[1729575977129,0.544743,67650.0,67649.0,0.002]
[1729575977930,0.544743,67650.0,67649.0,0.004]
[1729575979030,0.988223,67650.0,67649.0,0.004]
[1729575980827,0.073961,67633.0,67630.0,0.04415986]
[1729575981022,0.544763,67631.0,67630.0,0.02637765]
[1729575981330,0.073968,67627.0,67626.0,0.04415986]
[1729575981531,0.4708,67631.0,67623.0,0.073972]
[1729575981532,0.073969,67626.0,67623.0,0.073972]
[1729575981719,0.11,67624.0,67623.0,0.073972]
[1729575982032,0.183971,67624.0,67623.0,0.073972]
[1729575982534,0.073966,67629.0,67626.0,0.073969]
[1729575982723,0.073966,67629.0,67628.0,0.11]
[1729575983526,0.073966,67629.0,67626.0,0.183969]
[1729575983925,0.074966,67629.0,67628.0,0.001]
[1729575984328,0.074966,67629.0,67628.0,0.184967]
[1729575986034,0.073966,67629.0,67628.0,0.183967]
[1729575986235,0.073966,67629.0,67628.0,0.27904212]
[1729575986427,0.074966,67629.0,67628.0,0.35350485]
[1729575986828,0.075966,67629.0,67628.0,0.35450485]
[1729575987534,0.075966,67629.0,67628.0,0.25942973]
[1729575988530,0.075966,67629.0,67628.0,0.185967]
[1729575993741,0.002,67629.0,67628.0,0.185967]
[1729575993938,0.002,67629.0,67628.0,0.23001795]
[1729575994135,0.002,67629.0,67628.0,0.185967]
[1729576001232,0.002,67629.0,67628.0,0.28096752]
[1729576004555,0.03155416,67630.0,67629.0,0.073966]
[1729576004751,0.03155416,67630.0,67629.0,0.28253519]
[1729576005836,0.03255416,67630.0,67629.0,0.28353519]
[1729576006643,0.03355416,67630.0,67629.0,0.28753519]
[1729576008344,0.03355416,67630.0,67629.0,0.078966]
[1729576008548,0.002,67630.0,67629.0,0.30185677]
[1729576009445,0.002,67630.0,67629.0,0.47029332]
[1729576010451,0.002,67630.0,67629.0,0.39663938]
[1729576010846,0.002,67630.0,67629.0,0.47037064]
[1729576011353,0.002,67630.0,67629.0,0.47036615]
[1729576013749,0.075965,67630.0,67629.0,0.47036615]
[1729576013949,0.185965,67630.0,67629.0,0.37558354]
[1729576014149,0.185965,67630.0,67629.0,0.30185677]
[1729576015449,0.075965,67630.0,67629.0,0.22789077]
[1729576015657,0.185965,67630.0,67629.0,0.22789077]
[1729576016357,0.185965,67630.0,67629.0,0.30161754]
[1729576017452,0.185965,67630.0,67629.0,0.07872677]
[1729576019052,0.185965,67630.0,67629.0,0.17371737]
[1729576021159,0.185965,67630.0,67629.0,0.0999906]
[1729576022449,0.185965,67630.0,67629.0,0.17374019]
[1729576022757,0.185965,67630.0,67629.0,0.0999906]
[1729576022958,0.185965,67630.0,67629.0,0.17369917]
[1729576023155,0.185965,67630.0,67629.0,0.09994912]
[1729576024861,0.185965,67630.0,67629.0,0.18844464]
[1729576030869,0.185965,67630.0,67629.0,0.09994912]
[1729576031466,0.185965,67630.0,67629.0,0.04924027]
[1729576035980,0.185965,67630.0,67629.0,0.005]
[1729576038375,0.185965,67630.0,67629.0,0.09977453]
[1729576038781,0.185965,67630.0,67629.0,0.18825276]
[1729576041883,0.185965,67630.0,67629.0,0.09977453]
[1729576043489,0.185965,67630.0,67629.0,0.18825276]
[1729576044284,0.185965,67630.0,67629.0,0.09977453]
[1729576046592,0.185965,67630.0,67629.0,0.18825276]
[1729576046784,0.185965,67630.0,67629.0,0.09977453]
[1729576047695,0.185965,67630.0,67629.0,0.09983545]
[1729576053485,0.185965,67630.0,67629.0,0.005]
[1729576060594,0.185965,67630.0,67629.0,0.09989581]
[1729576062503,0.185965,67630.0,67629.0,0.09990135]
[1729576065192,0.075965,67630.0,67629.0,0.18837958]
[1729576065904,0.185965,67630.0,67629.0,0.18840231]
[1729576067207,0.185965,67630.0,67629.0,0.18840473]
[1729576068499,0.185965,67630.0,67629.0,0.005]
[1729576070010,0.075965,67630.0,67629.0,0.005]
[1729576075709,0.075965,67630.0,67629.0,0.18840523]
[1729576077199,0.075965,67630.0,67629.0,0.09992458]
[1729576080404,0.075965,67630.0,67629.0,0.1884042]
[1729576081114,0.075965,67630.0,67629.0,0.09992458]
[1729576081707,0.075965,67630.0,67629.0,0.18841302]
[1729576083612,0.075965,67630.0,67629.0,0.005]
[1729576090718,0.075965,67630.0,67629.0,0.18841342]
[1729576091312,0.075965,67630.0,67629.0,0.18841363]